bitfinex/quotes_SOLUSD_20250815
["timestamp","ask_amount","ask_price","bid_price","bid_amount"]
[1755258499249,36.3,194.69,194.68,8.35920761]
[1755258499455,0.06,194.74,194.68,9.03920761]
[1755258499787,39.70441824,194.73,194.69,0.68]
[1755258500079,36.34,194.74,194.69,26.68]
[1755258500248,36.34,194.74,194.7,5.81610683]
[1755258500579,36.34,194.74,194.7,0.68]
[1755258500949,36.34,194.74,194.73,8.35920761]
[1755258501379,36.34,194.74,194.73,9.03920761]
[1755258501881,36.34,194.74,194.73,8.35920761]
[1755258503253,39.76541858,194.74,194.73,8.35920761]
[1755258504462,36.34,194.74,194.73,8.35920761]
[1755258504851,36.34,194.74,194.73,9.03920761]
[1755258506159,36.34,194.74,194.73,8.35920761]
[1755258507272,39.76772834,194.74,194.73,8.35920761]
[1755258507975,36.34,194.74,194.73,8.35920761]
[1755258508676,36.34,194.74,194.73,9.03920761]
[1755258509050,0.06,194.74,194.73,14.17452317]
[1755258511282,0.06,194.74,194.73,8.35920761]
[1755258511492,0.06,194.74,194.72,34.35920761]
[1755258511856,0.06,194.74,194.73,9.01920761]
[1755258512662,0.06,194.75,194.73,9.01920761]
[1755258512864,0.06,194.75,194.74,35.01920761]
[1755258513067,0.06,194.75,194.74,14.15425947]
[1755258515277,0.06,194.76,194.74,22.51346708]
[1755258515482,0.06,194.76,194.75,9.01920761]
[1755258516055,0.06,194.76,194.75,11.07528761]
[1755258516977,0.06,194.8,194.78,26.0]
[1755258517178,0.06,194.8,194.79,8.35920761]
[1755258517484,0.06,194.86,194.82,26.0]
[1755258517697,0.06,194.86,194.85,8.35920761]
[1755258518190,0.06,194.86,194.85,9.01920761]
[1755258518683,0.06,194.86,194.85,0.66]
[1755258518880,0.06,194.86,194.85,9.01920761]
[1755258519255,0.06,194.86,194.85,14.15136054]
[1755258520286,0.06,194.86,194.85,8.35920761]
[1755258522384,0.06,194.86,194.83,26.0]
[1755258522574,0.75,194.86,194.83,8.35920761]
[1755258522778,0.75,194.86,194.83,34.35920761]
[1755258523282,0.75,194.86,194.83,8.35920761]
[1755258523491,0.75,194.86,194.83,34.35920761]
[1755258525803,0.06,194.86,194.83,34.35920761]
[1755258527013,5.19199082,194.86,194.83,34.35920761]
[1755258527192,5.19199082,194.86,194.83,26.0]
[1755258529110,0.06,194.86,194.84,0.66]
[1755258530305,0.06,194.86,194.84,9.01920761]
[1755258530497,0.06,194.86,194.85,9.01920761]
[1755258532406,0.06,194.86,194.85,14.15136054]
[1755258533294,0.06,194.86,194.85,9.01920761]
[1755258533503,0.06,194.86,194.85,14.15136054]
[1755258536414,0.06,194.86,194.85,50.39136054]
[1755258540303,0.06,194.86,194.85,65.49757611]
[1755258541126,0.06,194.86,194.85,50.39136054]
[1755258541314,0.06,194.86,194.85,49.73136054]
[1755258541510,0.06,194.86,194.85,50.41136054]
[1755258542239,0.06,194.86,194.85,65.51757611]
[1755258543308,0.06,194.88,194.87,26.0]
[1755258543628,0.06,194.88,194.87,71.13237023]
[1755258543934,0.06,194.88,194.87,71.81237023]
[1755258544435,0.06,194.88,194.87,76.94399644]
[1755258548620,0.06,194.88,194.87,70.61920761]
[1755258548825,3.47736364,194.88,194.87,34.35920761]
[1755258550839,3.47736364,194.88,194.86,41.37186392]
[1755258551013,0.06,194.88,194.87,8.35920761]
[1755258551326,3.47953158,194.88,194.87,8.35920761]
[1755258552439,3.47953158,194.88,194.87,13.49083382]
[1755258554538,3.47953158,194.88,194.87,13.49083382]
[1755258560017,3.47953158,194.88,194.87,14.17083382]
[1755258560431,0.06,194.88,194.87,5.81162621]
[1755258560735,0.06,194.88,194.87,14.17083382]
[1755258562443,0.06,194.88,194.87,5.81162621]
[1755258562741,0.06,194.88,194.87,14.17083382]
[1755258564534,0.06,194.88,194.87,5.81162621]
[1755258564749,0.06,194.88,194.87,14.17083382]
[1755258566645,0.06,194.88,194.87,5.81162621]
[1755258566847,0.06,194.88,194.87,13.49083382]
[1755258567017,0.06,194.88,194.87,8.35920761]
[1755258568138,0.06,194.88,194.87,13.49083382]
[1755258568336,0.06,194.88,194.87,14.17083382]
[1755258571153,0.06,194.88,194.87,14.68399644]
[1755258574441,1e-08,194.89,194.88,15.10621557]
[1755258574753,1e-08,194.89,194.88,68.65463079]
[1755258574960,1e-08,194.89,194.88,60.29542318]
[1755258575853,1e-08,194.89,194.88,68.65463079]
[1755258576864,1e-08,194.9,194.88,65.42678606]
[1755258577169,1e-08,194.91,194.9,41.10621557]
[1755258577338,1e-08,194.91,194.9,85.58542318]
[1755258577540,1e-08,194.91,194.9,86.29542318]
[1755258578248,1e-08,194.91,194.9,91.4262595]
[1755258582244,1e-08,194.92,194.91,15.10621557]
[1755258582465,1e-08,194.92,194.91,24.68848048]
[1755258582967,1e-08,194.92,194.91,29.81905356]
[1755258583168,1e-08,194.94,194.93,41.10621557]
[1755258583367,1e-08,194.95,194.94,15.10621557]
[1755258583675,1e-08,194.95,194.94,24.17542318]
[1755258583965,1e-08,194.96,194.94,24.17542318]
[1755258584171,1e-08,194.96,194.95,8.87215964]
[1755258584468,1e-08,194.96,194.95,44.47920761]
[1755258584645,3.44219419,194.96,194.95,44.47920761]
[1755258585050,4.13219419,194.96,194.95,44.47920761]
[1755258585259,4.13219419,194.96,194.95,49.60872799]
[1755258585462,0.69000001,194.96,194.95,49.60872799]
[1755258585663,4.13151259,194.96,194.95,49.60872799]
[1755258587171,4.13151259,194.96,194.95,44.47920761]
[1755258587475,4.13151259,194.96,194.95,36.12]
[1755258589968,4.13151259,194.96,194.94,44.45920761]
[1755258590153,3.44151258,194.95,194.94,44.45920761]
[1755258590561,4.13151258,194.95,194.94,36.1]
[1755258590863,3.44151258,194.95,194.94,36.1]
[1755258592048,4.13151258,194.95,194.93,36.08]
[1755258592276,4.13151258,194.94,194.92,36.08]
[1755258592577,0.69,194.94,194.92,36.08]
[1755258593871,0.69,194.94,194.92,49.56950166]
[1755258594057,0.69,194.94,194.92,41.21029405]
[1755258594259,0.69,194.94,194.92,44.43920761]
[1755258594461,0.69,194.94,194.92,49.56949016]
[1755258594658,0.69000001,194.96,194.95,26.0]
[1755258594843,3.4385168,194.96,194.95,26.0]
[1755258595047,7.94857963,194.96,194.95,26.0]
[1755258597151,4.1285168,194.96,194.95,26.0]
[1755258598079,3.4385168,194.96,194.95,26.0]
[1755258598384,3.4385168,194.96,194.95,34.35920761]
[1755258599955,3.4385168,194.96,194.95,39.48872799]
[1755258600584,4.1285168,194.96,194.95,26.0]
[1755258601995,3.4385168,194.96,194.95,26.71]
[1755258602167,3.4385168,194.96,194.95,40.19872799]
[1755258603855,1e-08,194.96,194.95,40.19872799]
[1755258605992,1e-08,194.96,194.95,76.27872799]
[1755258606167,1e-08,194.96,194.95,91.89789559]
[1755258606562,1e-08,194.96,194.95,93.95154759]
[1755258606990,1e-08,194.96,194.95,40.19872799]
[1755258607187,1e-08,194.96,194.95,76.27872799]
[1755258611272,1e-08,194.96,194.95,78.33248499]
[1755258611781,0.06,194.98,194.96,15.10621557]
[1755258611984,0.06,194.98,194.97,60.0583226]
[1755258612189,0.06,194.99,194.98,8.35920761]
[1755258612416,0.06,195.02,195.01,26.0]
[1755258612721,3.50423221,195.02,195.01,70.43920761]
[1755258612890,3.50423221,195.02,195.01,76.27714976]
[1755258613497,0.06,195.02,195.01,76.27714976]
[1755258614521,0.06,195.02,195.01,75.56714976]
[1755258615087,0.06,195.02,195.01,76.27714976]
[1755258616141,0.06,195.02,195.01,91.38336533]
[1755258617192,0.06,195.02,195.01,75.56714976]
[1755258618723,0.06,195.02,195.01,76.27714976]
[1755258619930,0.06,195.02,195.01,67.91794215]
[1755258620111,0.06,195.02,195.01,67.20794215]
[1755258620313,0.06,195.02,195.01,75.56714976]
[1755258620823,0.06,195.02,195.01,67.20794215]
[1755258621022,0.06,195.02,195.01,75.56714976]
[1755258622822,0.06,195.02,195.01,34.35920761]
[1755258623128,0.74,195.02,195.01,70.41920761]
[1755258623306,0.06,195.02,195.01,75.54714976]
[1755258623691,0.06,195.02,195.01,76.25714976]
[1755258624812,0.06,195.02,195.01,76.76994397]
[1755258625323,0.06,195.02,195.01,91.87615954]
[1755258625527,0.06,195.04,195.01,91.87615954]
[1755258625834,0.06,195.06,195.04,15.10621557]
[1755258626012,0.06,195.06,195.05,44.41920761]
[1755258626331,0.06,195.06,195.05,55.3669505]
[1755258626625,3.43774141,195.11,195.08,26.0]
[1755258626828,3.43774141,195.11,195.05,75.44145785]
[1755258626829,0.68,195.14,195.1,8.35920761]
[1755258627034,4.11591734,195.13,195.12,26.0]
[1755258627334,3.61591734,195.13,195.12,26.0]
[1755258627707,3.61591734,195.13,195.12,31.12505125]
[1755258628222,0.68,195.13,195.11,13.48448117]
[1755258628423,8.35920761,195.17,195.11,13.48448117]
[1755258628625,0.68,195.12,195.1,34.35920761]
[1755258628844,0.68,195.11,195.1,34.35920761]
[1755258629433,0.68,195.11,195.1,26.0]
[1755258629902,13.4835275,195.15,195.1,26.0]
[1755258630104,0.74,195.13,195.1,34.35920761]
[1755258630329,0.68,195.12,195.1,34.35920761]
[1755258630800,0.06,195.13,195.1,39.48474758]
[1755258631000,0.67,195.12,195.1,39.48474758]
[1755258631430,0.06,195.13,195.11,8.35920761]
[1755258631902,0.06,195.13,195.12,5.12505125]
[1755258632597,0.06,195.13,195.12,39.48425886]
[1755258633299,0.06,195.13,195.12,31.12505125]
[1755258635808,0.06,195.13,195.12,39.48425886]
[1755258637137,0.06,195.13,195.12,31.12505125]
[1755258638816,0.06,195.13,195.12,26.0]
[1755258639025,0.73,195.13,195.12,26.0]
[1755258641214,0.06,195.13,195.12,26.0]
[1755258644655,0.06,195.13,195.12,35.01920761]
[1755258644854,0.06,195.13,195.12,40.14425886]
[1755258646217,0.06,195.13,195.12,76.20425886]
[1755258650061,0.06,195.13,195.12,75.54425886]
[1755258650647,0.06,195.13,195.12,76.20425886]
[1755258652148,12.5163993,195.13,195.1,0.03]
[1755258652353,8.35920761,195.11,195.1,0.03]
[1755258652652,19.86901949,195.11,195.1,0.03]
[1755258652855,30.70132853,195.11,195.06,0.03]
[1755258653035,12.18950062,195.1,195.06,0.03]
[1755258653240,8.35920761,195.07,195.06,0.03]
[1755258653436,15.59511296,195.07,195.06,0.03]
[1755258653950,21.39147785,195.07,195.06,0.03]
[1755258655829,16.26511296,195.07,195.06,0.03]
[1755258656527,21.39147785,195.07,195.06,0.03]
[1755258657955,16.91276419,195.07,195.06,0.03]
[1755258658635,8.55355658,195.07,195.06,0.03]
[1755258658860,20.72300222,195.07,195.06,0.03]
[1755258659438,15.59663733,195.07,195.06,0.03]
[1755258659652,3.42719169,195.07,195.06,0.03]
[1755258660034,11.7863993,195.07,195.06,0.03]
[1755258660230,16.91276419,195.07,195.06,0.03]
[1755258660435,21.39276612,195.07,195.06,0.03]
[1755258661367,36.49898169,195.07,195.06,0.03]
[1755258661553,40.78257696,195.07,195.06,0.03]
[1755258662862,70.78257696,195.07,195.06,0.03]
[1755258663036,106.84257696,195.07,195.06,0.03]
[1755258663236,102.55783177,195.07,195.06,0.03]
[1755258664159,37.2360437,195.07,195.06,0.03]
[1755258664359,69.48719169,195.07,195.06,0.73]
[1755258664530,39.48719169,195.07,195.06,0.03]
[1755258664736,47.8463993,195.07,195.06,0.03]
[1755258665568,39.48719169,195.07,195.06,0.03]
[1755258665744,47.8463993,195.07,195.06,0.03]
[1755258666564,36.06,195.07,195.06,0.03]
[1755258666773,32.20245673,195.12,195.06,26.73]
[1755258666774,4.28359527,195.12,195.06,26.73]
[1755258667067,51.65730509,195.11,195.06,26.73]
[1755258667258,11.78769009,195.1,195.06,26.03]
[1755258667438,3.42848248,195.09,195.07,0.7]
[1755258667642,47.84769009,195.08,195.06,0.03]
[1755258667953,26.89390566,195.07,195.06,0.03]
[1755258668148,31.36323628,195.07,195.06,0.03]
[1755258669064,30.70323628,195.07,195.06,0.03]
[1755258669262,31.36323628,195.07,195.06,0.03]
[1755258669975,66.48960117,195.07,195.04,0.03]
[1755258670138,23.46542318,195.05,195.04,0.03]
[1755258670339,30.70323628,195.05,195.04,0.03]
[1755258670535,31.36323628,195.05,195.04,0.03]
[1755258670975,61.36323628,195.05,195.04,0.03]
[1755258671746,65.64683155,195.05,195.0,0.03]
[1755258671968,23.46542318,195.01,195.0,0.03]
[1755258672149,62.95390566,195.01,195.0,0.03]
[1755258672351,67.4173869,195.01,195.0,0.03]
[1755258672551,15.10621557,195.0,194.93,0.03]
[1755258672858,8.35920761,194.94,194.93,0.03]
[1755258673253,44.41920761,194.94,194.93,0.73]
[1755258673447,36.06,194.94,194.93,0.73]
[1755258673650,36.06,194.96,194.93,14.21916434]
[1755258673870,36.06,194.96,194.93,13.51916434]
[1755258674189,36.06,194.96,194.94,0.7]
[1755258674546,15.10621557,195.02,194.93,5.15995673]
[1755258674547,8.35920761,194.97,194.93,0.03]
[1755258674754,8.35920761,194.94,194.93,0.03]
[1755258675080,44.41920761,194.94,194.93,0.03]
[1755258676208,8.35920761,194.96,194.93,0.73]
[1755258676386,11.77185788,194.98,194.93,0.73]
[1755258676685,36.06,194.97,194.93,9.08920761]
[1755258676862,8.35920761,194.98,194.93,8.38920761]
[1755258677052,36.06,194.96,194.94,0.7]
[1755258677382,36.06,194.96,194.95,0.7]
[1755258677754,8.35920761,194.99,194.95,0.7]
[1755258678072,205.0017057,195.04,194.96,0.7]
[1755258678073,36.06,194.98,194.96,0.7]
[1755258678585,36.06,194.98,194.97,0.7]
[1755258678874,23.46542318,195.02,194.97,0.7]
[1755258679076,39.47306431,195.01,194.98,0.7]
[1755258679278,36.06,195.01,194.99,0.7]
[1755258679956,36.06,195.01,195.0,0.7]
[1755258680159,131.9,195.04,195.0,0.7]
[1755258680479,47.83152037,195.03,195.0,0.7]
[1755258680676,3.41231276,195.02,195.0,0.7]
[1755258682081,131.9,195.04,195.01,0.7]
[1755258682266,8.35920761,195.06,195.02,0.7]
[1755258682472,36.06,195.05,195.03,0.7]
[1755258682862,8.35920761,195.07,195.03,0.7]
[1755258683173,36.06,195.05,195.03,0.7]
[1755258683662,36.06,195.05,195.0,5.12811677]
[1755258683872,44.41920761,195.05,195.01,0.7]
[1755258684078,8.35920761,195.04,194.99,26.0]
[1755258684279,8.35920761,195.03,194.99,26.7]
[1755258684476,44.41920761,195.03,194.99,26.7]
[1755258684867,8.35920761,195.02,194.99,26.0]
[1755258685066,11.77270524,195.02,194.99,26.0]
[1755258685265,36.06,195.01,194.99,26.0]
[1755258685574,36.06,195.01,195.0,0.7]
[1755258685975,36.06,195.01,194.99,26.7]
[1755258686680,36.06,195.01,194.99,26.0]
[1755258686988,36.06,195.01,195.0,0.7]
[1755258687289,36.06,195.01,194.99,26.7]
[1755258688088,36.06,195.01,195.0,0.7]
[1755258692192,39.4810247,195.01,195.0,0.7]
[1755258693993,39.4810247,195.01,194.99,26.0]
[1755258694187,3.42585838,195.0,194.99,26.68]
[1755258694365,3.42585838,195.0,194.99,26.0]
[1755258694560,12.46506599,195.0,194.96,26.0]
[1755258694765,12.46506599,194.99,194.95,0.68]
[1755258695066,3.42585838,194.98,194.95,0.68]
[1755258695283,36.06,194.99,194.95,0.68]
[1755258695482,3.42808254,194.98,194.96,0.68]
[1755258695688,36.06,194.99,194.97,0.68]
[1755258695868,3.42808874,194.98,194.97,0.68]
[1755258696067,3.42808874,194.98,194.96,8.35920761]
[1755258696263,3.43132418,194.97,194.96,8.35920761]
[1755258696902,3.43132418,194.97,194.95,13.48853066]
[1755258697080,36.06,194.99,194.95,13.51853066]
[1755258697283,3.43136252,194.98,194.96,0.68]
[1755258697490,36.06,194.99,194.96,0.68]
[1755258697691,3.43292718,194.98,194.96,5.12911342]
[1755258697994,0.06,195.01,194.99,26.0]
[1755258698293,7.25456022,195.0,194.99,26.0]
[1755258698482,3.43303731,195.0,194.99,34.35920761]
[1755258698680,3.43303731,195.0,194.99,35.03920761]
[1755258698995,3.43303731,195.0,194.99,26.68]
[1755258699183,3.43303731,195.0,194.99,35.03920761]
[1755258699588,3.43303731,195.0,194.99,40.16767573]
[1755258700187,0.06,195.01,194.99,40.16767573]
[1755258700395,0.06,195.01,195.0,9.03920761]
[1755258700600,3.49463824,195.01,195.0,9.03920761]
[1755258701687,0.06,195.01,195.0,50.22741273]
[1755258704201,0.06,195.01,195.0,0.68]
[1755258704383,0.06,195.01,195.0,14.16741273]
[1755258705606,0.06,195.01,195.0,8.35920761]
[1755258705912,0.06,195.01,195.0,26.0]
[1755258706611,0.06,195.01,195.0,35.03920761]
[1755258707174,0.06,195.01,195.0,34.35920761]
[1755258707804,0.06,195.01,195.0,35.03920761]
[1755258707983,0.06,195.01,194.97,45.12920761]
[1755258708183,0.68,195.0,194.97,0.03]
[1755258708386,3.43325602,194.99,194.97,0.03]
[1755258708607,3.43325602,194.98,194.97,26.03]
[1755258709300,3.43325602,194.98,194.97,0.03]
[1755258709587,3.43325602,194.98,194.97,26.03]
[1755258711388,12.47246363,194.98,194.97,0.03]
[1755258711600,16.29350952,194.98,194.97,0.03]
[1755258712411,21.42224067,194.98,194.97,0.03]
[1755258714420,36.52845624,194.98,194.97,0.03]
[1755258714716,15.10621557,194.97,194.96,0.03]
[1755258714927,71.74929889,194.97,194.96,0.03]
[1755258715294,67.45972509,194.97,194.96,0.03]
[1755258715489,71.74929889,194.97,194.96,0.03]
[1755258716119,76.87829309,194.97,194.96,0.03]
[1755258717814,106.87829309,194.97,194.96,0.03]
[1755258718815,106.19829309,194.97,194.96,0.03]
[1755258719319,71.90871929,194.97,194.96,0.03]
[1755258720199,76.19829309,194.97,194.96,0.03]
[1755258720390,55.96308332,194.97,194.96,0.03]
[1755258720594,3.43325602,194.97,194.96,9.06920761]
[1755258721105,3.43325602,195.0,194.96,0.71]
[1755258721310,3.43325602,194.99,194.97,26.0]
[1755258721498,3.43325602,194.98,194.97,26.66]
[1755258722209,3.43325602,194.98,194.97,0.66]
[1755258723594,3.43325602,194.98,194.97,5.7889942]
[1755258723914,0.06,195.01,194.97,14.14820181]
[1755258724216,3.42807324,195.0,194.98,26.0]
[1755258724391,3.42807324,194.99,194.96,0.03]
[1755258724590,3.42807324,194.98,194.97,26.0]
[1755258725612,3.42807324,194.98,194.96,0.69]
[1755258725813,3.42807324,194.98,194.96,0.03]
[1755258725814,3.42702289,194.97,194.96,0.03]
[1755258726022,11.7862305,194.97,194.96,0.03]
[1755258726194,15.59416365,194.97,194.96,0.03]
[1755258726398,16.27381246,194.97,194.96,0.03]
[1755258727203,31.38002803,194.97,194.96,0.03]
[1755258727801,36.50902223,194.97,194.96,0.03]
[1755258728222,66.50902223,194.97,194.96,0.03]
[1755258729327,65.82902223,194.97,194.96,0.03]
[1755258729696,56.82280666,194.97,194.96,0.03]
[1755258730523,7.23167785,194.97,194.96,0.69]
[1755258730731,43.33167785,194.97,194.96,0.03]
[1755258730897,51.69088546,194.97,194.96,0.03]
[1755258731253,43.33167785,194.97,194.96,0.03]
[1755258732259,56.81961246,194.97,194.96,0.03]
[1755258732644,53.0152247,194.97,194.96,0.03]
[1755258733003,56.81925067,194.97,194.96,0.03]
[1755258733347,44.65601709,194.97,194.96,0.03]
[1755258736407,39.52702289,194.97,194.96,0.03]
[1755258736742,3.42702289,194.97,194.96,0.69]
[1755258736933,39.52702289,194.97,194.96,0.69]
[1755258737250,3.42702289,194.97,194.96,0.69]
[1755258737828,3.42702289,194.97,194.96,9.04920761]
[1755258738029,0.06,194.99,194.96,14.17846489]
[1755258738336,0.06,194.99,194.98,8.35920761]
[1755258738838,0.06,195.01,195.0,26.0]
[1755258739141,0.06,195.01,195.0,34.35920761]
[1755258739444,0.06,195.01,195.0,35.01920761]
[1755258739818,0.06,195.01,195.0,40.14741273]
[1755258744034,0.06,195.01,195.0,76.22741273]
[1755258746933,0.06,195.01,195.0,71.09920761]
[1755258747442,0.06,195.01,195.0,76.22741273]
[1755258748940,0.06,195.01,195.0,40.14741273]
[1755258749729,0.06,195.01,195.0,26.0]
[1755258749929,0.06,195.01,194.99,8.35920761]
[1755258750454,0.06,195.01,194.99,9.01920761]
[1755258751757,0.06,195.01,194.99,14.14767461]
[1755258754256,0.06,195.01,195.0,0.72]
[1755258754462,0.06,195.01,195.0,9.07920761]
[1755258754766,0.06,195.01,195.0,40.20741273]
[1755258755067,0.06,195.01,195.0,14.20741273]
[1755258755235,0.06,195.01,195.0,17.68555873]
[1755258758472,0.06,195.01,195.0,14.20741273]
[1755258758797,0.06,195.01,194.99,7.18183762]
[1755258758953,0.06,195.01,194.99,50.26760423]
[1755258759154,0.06,195.01,195.0,0.72]
[1755258759472,0.06,195.01,195.0,9.07920761]
[1755258760162,0.06,195.01,195.0,8.35920761]
[1755258760470,0.06,195.01,195.0,14.20741273]
[1755258760764,0.06,195.01,195.0,8.35920761]
[1755258760968,0.06,195.01,194.99,44.41920761]
[1755258761263,0.06,195.01,195.0,9.07920761]
[1755258761465,0.06,195.01,195.0,14.20741273]
[1755258765590,0.06,195.01,195.0,16.26085373]
[1755258766203,0.06,195.01,195.0,13.48741273]
[1755258766490,0.06,195.01,195.0,14.20741273]
[1755258767770,0.06,195.01,195.0,13.48741273]
[1755258768274,0.06,195.01,195.0,14.20741273]
[1755258771678,0.06,195.01,195.0,16.26085273]
[1755258772181,0.06,195.01,195.0,14.20741273]
[1755258774894,0.06,195.01,195.0,5.84820512]
[1755258775103,0.06,195.01,195.0,13.48741273]
[1755258775478,0.06,195.01,195.0,14.20741273]
[1755258776806,0.06,195.01,195.0,13.48741273]
[1755258777572,0.06,195.01,195.0,14.20741273]
[1755258778187,0.06,195.01,195.0,13.48741273]
[1755258781009,4.18347479,195.01,194.99,0.03]
[1755258781211,12.4826824,195.0,194.99,0.03]
[1755258781413,16.29823776,195.0,194.99,0.03]
[1755258782114,7.93903015,195.0,194.99,0.03]
[1755258783282,25.71601668,195.0,194.99,0.03]
[1755258783490,21.42644288,195.0,194.99,0.03]
[1755258783700,25.71601668,195.0,194.99,0.03]
[1755258784484,21.42644288,195.0,194.99,0.03]
[1755258784788,7.24903015,195.0,194.99,0.03]
[1755258785182,3.43347479,195.0,194.99,0.03]
[1755258785812,4.12347479,195.0,194.99,0.03]
[1755258786204,3.43347479,195.0,194.99,0.03]
[1755258788915,3.43347479,195.0,194.99,34.38920761]
[1755258789115,3.43347479,195.0,194.99,35.05920761]
[1755258789612,3.43347479,195.0,194.99,9.05920761]
[1755258789791,3.43347479,195.0,194.99,0.7]
[1755258789995,3.43347479,195.0,194.99,9.05920761]
[1755258791813,0.06,195.01,195.0,31.12820512]
[1755258792128,3.49432174,195.01,195.0,39.48741273]
[1755258792296,3.49432174,195.01,195.0,40.15741273]
[1755258792915,3.49437198,195.01,195.0,40.15741273]
[1755258793121,0.06,195.01,195.0,40.15741273]
[1755258795820,0.06,195.01,195.0,39.48741273]
[1755258796409,3.49512393,195.01,195.0,39.48741273]
[1755258796626,0.06,195.01,195.0,39.48741273]
[1755258797520,4.18499216,195.01,195.0,26.0]
[1755258797927,3.49499216,195.01,195.0,26.0]
[1755258798527,3.49499216,195.01,195.0,35.02920761]
[1755258799112,3.49499216,195.01,195.0,26.0]
[1755258800714,3.49499216,195.01,195.0,34.35920761]
[1755258802430,3.49499216,195.01,195.0,26.0]
[1755258803331,4.18499216,195.01,195.0,26.0]
[1755258803527,3.49499216,195.01,195.0,26.0]
[1755258805145,3.49499216,195.01,194.99,34.38920761]
[1755258805342,3.43499216,195.0,194.99,31.15845304]
[1755258805543,0.06,195.01,194.99,31.15845304]
[1755258805544,0.06,195.01,194.99,39.51766065]
[1755258805730,0.06,195.01,195.0,8.35920761]
[1755258805932,3.49514996,195.01,195.0,9.02920761]
[1755258806819,3.49514996,195.01,195.0,14.15741273]
[1755258807614,3.49514996,195.01,194.99,39.51763125]
[1755258807818,0.06,195.01,194.99,39.51763125]
[1755258808619,0.06,195.01,194.99,40.18763125]
[1755258809422,3.43747716,195.0,194.99,39.51763125]
[1755258809628,3.43747716,195.0,194.99,34.38920761]
[1755258809833,4.12747716,195.0,194.99,26.03]
[1755258810059,3.43747716,195.0,194.99,26.03]
[1755258811253,4.11747716,195.0,194.99,26.03]
[1755258811448,7.93726662,195.0,194.99,26.03]
[1755258811751,7.25726662,195.0,194.99,26.03]
[1755258812542,3.43747716,195.0,194.99,26.03]
[1755258814033,7.25834074,195.0,194.99,26.03]
[1755258814230,3.82086358,195.0,194.99,26.03]
[1755258814432,7.25928568,195.0,194.99,26.03]
[1755258815324,7.31928568,195.0,194.99,26.03]
[1755258815525,3.4984221,195.0,194.99,26.03]
[1755258817655,21.48474119,195.0,194.99,0.03]
[1755258817866,7.31732846,195.0,194.99,0.03]
[1755258819254,7.99732846,195.0,194.99,0.03]
[1755258819823,7.99826839,195.0,194.99,0.03]
[1755258820547,7.31826839,195.0,194.99,0.03]
[1755258822624,7.99826839,195.0,194.99,0.03]
[1755258826564,7.32208213,195.0,194.99,0.03]
[1755258828559,7.32028742,195.0,194.99,0.03]
[1755258831860,25.78572778,195.0,194.99,0.03]
[1755258834245,25.10457248,195.0,194.99,0.03]
[1755258834550,15.67833973,195.0,194.99,0.03]
[1755258836072,7.31913212,195.0,194.99,0.03]
[1755258836666,3.88071002,195.0,194.99,0.03]
[1755258836841,7.31857768,195.0,194.99,0.03]
[1755258837042,7.3175961,195.0,194.99,0.03]
[1755258838762,12.44580122,195.0,194.99,0.03]
[1755258839065,21.48500883,195.0,194.99,0.03]
[1755258839750,25.78234341,195.0,194.99,0.03]
[1755258840546,21.48500883,195.0,194.99,0.03]
[1755258840944,21.48500883,195.0,194.97,0.03]
[1755258841165,12.65720685,194.98,194.97,0.03]
[1755258841449,19.91402922,194.98,194.97,0.03]
[1755258841654,20.60402922,194.98,194.97,0.03]
[1755258841948,25.73276037,194.98,194.97,0.03]
[1755258842154,21.43553486,194.98,194.97,0.03]
[1755258843766,15.61680371,194.98,194.97,0.03]